bitfinex-derivatives/quotes_ETHF0:USTF0_20240904
["timestamp","ask_amount","ask_price","bid_price","bid_amount"]
[1725465015183,0.0061517,2436.8,2436.7,3.2078]
[1725465015472,0.0061517,2436.8,2436.7,3.61817]
[1725465015673,3.2078,2437.7,2436.7,13.3118]
[1725465015877,3.2078,2437.7,2437.3,0.41025]
[1725465016180,1.02542,2437.9,2437.0,3.2078]
[1725465016382,0.41027,2437.3,2437.0,3.2078]
[1725465016681,0.0061517,2437.4,2437.0,0.41031]
[1725465016879,0.0061517,2437.4,2437.3,0.41026]
[1725465017078,0.0061517,2437.4,2437.3,4.51346]
[1725465017271,0.0061517,2437.4,2437.3,11.81536]
[1725465017469,0.0061517,2437.4,2437.3,15.31536]
[1725465018179,0.41012,2438.2,2437.7,0.41019]
[1725465018483,5.7547,2438.3,2437.7,3.2078]
[1725465018785,6.1648,2438.3,2437.8,0.41017]
[1725465018981,3.2078,2438.3,2437.7,3.2078]
[1725465019186,0.0061517,2438.2,2438.1,0.41013]
[1725465019381,3.2078,2439.0,2438.6,0.41003]
[1725465019578,2.83,2439.5,2438.1,6.0]
[1725465019579,3.2078,2439.3,2438.9,3.2078]
[1725465019780,3.2078,2439.3,2439.0,3.5]
[1725465019986,0.40995,2439.2,2438.6,3.2078]
[1725465020184,3.2078,2439.0,2438.6,3.2078]
[1725465020690,3.2139517,2439.0,2438.6,3.2078]
[1725465020992,3.2139517,2439.0,2438.1,3.61793]
[1725465021288,0.41003,2438.7,2438.1,3.2078]
[1725465021477,3.2078,2438.7,2438.1,3.2078]
[1725465021784,0.41008,2438.4,2438.1,3.2078]
[1725465021991,0.41012,2438.2,2437.8,0.0061517]
[1725465022179,3.2078,2438.4,2437.8,0.0061517]
[1725465022378,3.61789,2438.4,2437.8,0.0061517]
[1725465022582,3.2078,2438.4,2437.8,0.0061517]
[1725465022783,3.2078,2438.4,2437.9,3.2078]
[1725465022990,0.41011,2438.3,2437.9,3.2078]
[1725465023176,0.4101,2438.3,2437.9,3.2078]
[1725465023594,0.41012,2438.2,2437.8,0.0061517]
[1725465024491,0.41013,2438.1,2437.8,0.0061517]
[1725465024681,0.41015,2438.0,2437.8,0.0061517]
[1725465025094,0.41014,2438.1,2437.8,0.0061517]
[1725465025385,0.41015,2438.0,2437.8,0.0061517]
[1725465025591,0.41012,2438.2,2437.8,3.2139517]
[1725465025889,0.41013,2438.1,2437.8,3.2139517]
[1725465026786,0.41015,2438.0,2437.8,3.2139517]
[1725465026991,0.41014,2438.1,2437.8,3.2139517]
[1725465027195,3.2078,2438.4,2437.8,3.2139517]
[1725465027196,0.41015,2438.0,2437.8,3.2139517]
[1725465028491,0.41016,2437.9,2437.8,3.2139517]
[1725465029485,0.41016,2437.9,2437.8,0.0061517]
[1725465029685,4.1016,2437.9,2437.2,3.2078]
[1725465029887,4.117,2438.5,2437.8,3.2078]
[1725465030193,4.117,2438.5,2438.3,0.41009]
[1725465030396,0.41007,2438.5,2438.2,0.4101]
[1725465030594,4.23295,2438.6,2438.0,0.41014]
[1725465030894,0.41006,2438.5,2438.4,3.2078]
[1725465031094,6.947,2438.9,2438.3,3.61789]
[1725465031095,0.41006,2438.6,2438.3,3.61789]
[1725465031288,0.41006,2438.5,2438.3,3.61789]
[1725465031496,0.0061517,2439.0,2438.3,3.2078]
[1725465031703,0.0061517,2439.0,2438.9,0.41]
[1725465031885,0.0061517,2439.0,2438.9,10.51]
[1725465032291,3.2078,2439.8,2438.9,10.1]
[1725465032292,0.4099,2439.5,2438.9,10.1]
[1725465032592,3.2078,2439.8,2438.9,10.1]
[1725465032593,0.40992,2439.4,2439.0,3.5]
[1725465032797,0.4099,2439.5,2439.1,0.40995]
[1725465033000,3.2078,2439.8,2439.1,0.40996]
[1725465033292,0.40988,2439.6,2439.2,0.40994]
[1725465033484,0.4099,2439.5,2439.1,0.40995]
[1725465033686,0.40996,2439.1,2439.0,3.5]
[1725465033890,0.40998,2439.0,2438.7,1.2801]
[1725465034101,1.02479,2439.4,2438.5,3.2078]
[1725465034102,0.41002,2438.8,2438.5,3.2078]
[1725465034398,4.117,2439.5,2438.6,3.5]
[1725465034604,6.947,2439.5,2438.6,3.5]
[1725465034891,0.41002,2438.8,2438.6,3.5]
[1725465035285,3.2078,2439.2,2438.6,6.7078]
[1725465035497,0.41003,2438.7,2438.6,6.7078]
[1725465035890,0.41003,2438.7,2438.3,3.2078]
[1725465035891,0.41004,2438.7,2438.3,3.2078]
[1725465036088,0.41004,2438.7,2438.3,3.61789]
[1725465036289,0.41004,2438.7,2438.3,7.11789]
[1725465036495,4.2328,2438.9,2438.3,6.7078]
[1725465036801,0.41006,2438.6,2438.3,6.7078]
[1725465037105,0.40998,2439.1,2438.7,0.41002]
[1725465037298,0.40995,2439.2,2438.8,3.61781]
[1725465037492,4.117,2439.5,2438.9,0.40999]
[1725465037696,4.117,2439.5,2438.8,3.2078]
[1725465037697,0.40995,2439.2,2438.8,3.6178]
[1725465037891,0.40995,2439.2,2438.9,0.41]
[1725465038091,4.117,2439.5,2438.9,0.41]
[1725465038299,4.117,2439.5,2439.1,0.40995]
[1725465038502,4.5056,2439.6,2439.1,3.2078]
[1725465038695,4.91549,2439.6,2439.2,0.40994]
[1725465039004,0.0061517,2439.7,2439.6,0.40988]
[1725465040091,0.0061517,2439.7,2439.6,4.50908]
[1725465040291,0.0061517,2439.7,2439.6,10.50908]
[1725465041297,0.0061517,2439.7,2439.6,0.40988]
[1725465041497,0.0061517,2439.7,2439.5,1.74328]
[1725465041701,0.0061517,2439.7,2439.6,0.40988]
[1725465041899,0.0061517,2439.7,2439.5,1.3334]
[1725465042200,0.0061517,2439.7,2439.6,8.00908]
[1725465042403,2.7754,2440.5,2439.6,7.5992]
[1725465042600,1.02414,2441.0,2440.3,3.2078]
[1725465042904,4.81264257,2441.2,2440.6,3.2078]
[1725465043105,3.2078,2441.2,2440.6,3.2078]
[1725465043401,1.3699,2441.3,2440.7,3.2139517]
[1725465043603,0.40968,2440.8,2440.7,0.0061517]
[1725465044295,4.50648,2440.8,2440.7,0.0061517]
[1725465044696,0.40974,2440.4,2440.3,3.2078]
[1725465045095,0.40984,2439.9,2439.7,3.2078]
[1725465045294,1.02444,2440.3,2439.7,3.61766]
[1725465045501,0.40977,2440.3,2439.7,3.2078]
[1725465045697,0.40978,2440.2,2439.8,0.0061517]
[1725465045908,0.40978,2440.2,2440.0,3.2078]
[1725465046508,0.40976,2440.4,2440.0,3.2078]
[1725465046700,1.02439,2440.4,2439.8,0.4159917]
[1725465046899,0.40983,2439.9,2439.8,0.0061517]
[1725465048800,4.50823,2439.9,2439.8,0.0061517]
[1725465049496,5.53281,2439.9,2439.8,0.0061517]
[1725465049701,0.40993,2439.3,2439.2,3.2078]
[1725465049898,5.4816,2439.8,2439.2,3.2078]
[1725465050105,0.4099,2439.5,2439.2,3.2078]
[1725465050297,6.50622,2439.8,2439.2,3.2078]
[1725465050498,5.4816,2439.8,2439.2,3.2078]
[1725465050706,0.40996,2439.2,2438.7,3.2078]
[1725465050907,1.02474,2439.5,2438.7,3.2078]
[1725465050908,3.2078,2439.3,2438.7,3.2078]
[1725465051118,0.40998,2439.0,2438.7,3.2078]
[1725465051406,4.117,2439.5,2438.7,3.2078]
[1725465051407,0.40995,2439.2,2438.7,3.2078]
[1725465051608,0.40998,2439.0,2438.9,3.2078]
[1725465051802,0.40995,2439.2,2438.9,3.2078]
[1725465051999,4.117,2439.5,2438.9,3.2078]
[1725465052208,0.41,2438.9,2438.8,0.0061517]
[1725465052401,4.117,2439.5,2438.8,0.0061517]
[1725465052607,0.40998,2439.0,2438.8,0.0061517]
[1725465052897,1.02483,2439.3,2438.8,0.0061517]
[1725465053101,0.40999,2439.0,2438.8,0.0061517]
[1725465053312,0.41,2438.9,2438.8,3.5061517]
[1725465054108,0.40997,2439.1,2438.8,3.5061517]
[1725465054310,1.3599,2439.2,2438.9,3.2078]
[1725465054508,1.3599,2439.2,2438.8,3.5061517]
[1725465054509,4.117,2439.5,2439.1,3.2078]
[1725465054714,0.40994,2439.2,2439.1,3.2078]
[1725465055211,0.40992,2439.4,2439.1,3.2078]
[1725465055507,4.52691,2439.5,2439.1,3.61776]
[1725465055713,4.117,2439.5,2438.9,5.7955]
[1725465056013,0.40991,2439.5,2438.9,5.7955]
[1725465056314,0.40991,2439.5,2439.2,3.2078]
[1725465056512,0.40992,2439.4,2439.2,3.2078]
[1725465056807,0.0061517,2439.7,2439.2,3.2078]
[1725465057011,1.02471,2439.6,2439.2,3.2078]
[1725465057203,0.40993,2439.3,2439.2,3.2078]
[1725465058012,0.40992,2439.4,2439.2,3.2078]
[1725465058705,1.0308417,2439.7,2439.2,3.2078]
[1725465058706,0.40993,2439.3,2439.2,3.2078]
[1725465060204,0.0061517,2439.7,2439.2,7.3078]
[1725465060407,0.0061517,2439.7,2439.2,3.2078]
[1725465060609,0.40988,2439.6,2439.3,0.40992]
[1725465060816,0.40988,2439.6,2439.2,3.2078]
[1725465060817,0.40993,2439.3,2439.2,3.2078]
[1725465061015,1.43476,2439.3,2439.2,3.2078]
[1725465061617,0.40993,2439.3,2439.2,3.2078]
[1725465062211,1.43476,2439.3,2439.2,3.2078]
[1725465062918,1.435,2438.9,2438.8,0.0061517]
[1725465063717,0.41,2438.9,2438.8,0.0061517]
[1725465063915,0.40997,2439.1,2438.8,4.1061517]
[1725465064218,0.40994,2439.3,2439.0,0.40997]
[1725465064521,0.4099,2439.5,2439.3,0.40992]
[1725465064819,0.0061517,2439.7,2439.5,0.40988]
[1725465065121,0.0061517,2439.7,2439.6,0.40988]
[1725465065414,0.0061517,2439.7,2439.6,6.40988]
[1725465065611,0.0061517,2439.7,2439.5,3.2078]
[1725465065811,0.4160217,2439.7,2439.5,3.2078]
[1725465066121,0.0061517,2439.7,2439.5,3.2078]
[1725465066324,0.4160117,2439.7,2439.5,3.2078]
[1725465066616,0.4160117,2439.7,2439.3,0.40992]
[1725465066617,0.0061517,2439.7,2439.3,0.40992]
[1725465066817,0.40992,2439.4,2439.1,4.4912]
[1725465067018,0.40992,2439.4,2439.2,8.47991976]
[1725465067230,0.40992,2439.4,2439.1,4.4912]
[1725465067410,0.40993,2439.3,2439.1,4.90115]
[1725465067615,0.40992,2439.4,2439.1,4.90116]
[1725465067922,0.0061517,2439.7,2439.1,8.5904]
[1725465068119,0.0061517,2439.7,2439.6,0.40988]
[1725465068423,0.40978,2440.2,2439.8,0.40983]
[1725465068725,1.06537862,2440.6,2439.9,3.90982]
[1725465068726,0.40977,2440.3,2439.9,3.90982]
[1725465069113,0.40978,2440.2,2439.9,3.5]
[1725465069312,1.3109,2440.6,2439.9,3.5]
[1725465069313,0.40978,2440.3,2439.9,3.5]
[1725465069611,0.4159317,2440.3,2439.9,3.90983]
[1725465070209,0.0061517,2440.3,2440.1,0.40978]
[1725465070417,0.0061517,2440.3,2440.2,0.40978]
[1725465070624,0.0061517,2440.3,2440.2,5.4022]
[1725465070809,0.0061517,2440.3,2440.2,5.4014]
[1725465071016,0.0061517,2440.3,2439.9,5.28932]
[1725465071219,0.4159217,2440.3,2439.9,4.8795]
[1725465071432,0.4159217,2440.3,2439.9,5.28931]
[1725465071732,0.40978,2440.2,2439.9,4.8795]
[1725465072329,0.40981,2440.0,2439.7,3.2078]
[1725465072625,0.0061517,2440.3,2439.7,3.2078]
[1725465072917,0.0061517,2440.3,2440.2,0.40978]
[1725465073422,0.0061517,2440.3,2440.2,10.50738]
[1725465073720,1.06537862,2441.2,2440.7,0.40968]
[1725465073923,3.93426257,2441.3,2440.7,0.40968]
[1725465073924,1.06537862,2441.3,2440.7,3.2078]
[1725465074121,1.06537862,2441.3,2440.4,1.02434]
[1725465074122,2.08930862,2441.5,2440.8,4.7932]
[1725465074421,0.40966,2440.9,2440.8,3.5]
[1725465074734,0.40966,2440.9,2440.6,0.0061517]
[1725465074735,0.40969,2440.7,2440.6,0.0061517]
[1725465075224,0.40969,2440.7,2440.6,3.5061517]
[1725465075818,0.0061517,2441.1,2440.6,4.1037517]
[1725465076024,0.40964,2441.0,2440.7,0.40969]
[1725465076227,0.40967,2440.9,2440.6,0.4158517]
[1725465076423,0.40967,2440.9,2440.8,3.5]
[1725465076620,0.40969,2440.7,2440.6,0.0061517]
[1725465076814,1.02411,2441.0,2440.6,4.1037517]
[1725465077015,0.40967,2440.9,2440.7,3.5]
[1725465077324,0.4157917,2441.1,2440.8,0.40967]
[1725465077519,0.0061517,2441.1,2440.9,0.40966]
[1725465077713,0.0061517,2441.1,2440.8,3.61746]
[1725465078022,0.0061517,2441.1,2441.0,0.40964]
[1725465078229,0.0061517,2441.1,2441.0,4.50644]
[1725465078422,1.06537862,2441.9,2441.6,0.40953]
[1725465078623,0.40952,2441.8,2441.5,0.40955]
[1725465078813,0.40947,2442.0,2441.4,3.2078]
[1725465079018,0.40951,2441.8,2441.5,0.40955]
[1725465079318,0.40952,2441.8,2441.5,0.40956]
[1725465079627,0.40952,2441.8,2441.4,3.61736]
[1725465079822,0.0061303,2441.9,2441.8,0.40951]
[1725465080020,0.0061303,2441.9,2441.7,3.2078]
[1725465080217,0.4156203,2441.9,2441.8,2.6523]
[1725465080415,0.0061303,2441.9,2441.8,2.6523]
[1725465080615,0.0061303,2441.9,2441.8,6.7475]
[1725465080817,0.0061303,2441.9,2441.8,7.15701]
[1725465081025,0.0061303,2441.9,2441.8,2.6523]
[1725465081318,0.0061303,2441.9,2441.8,6.7475]
[1725465081723,0.4156203,2441.9,2441.8,6.7475]
[1725465081928,0.40951,2441.8,2441.7,3.2078]
[1725465082118,0.40953,2441.7,2441.4,0.40956]
[1725465082424,0.40953,2441.7,2441.3,5.8296]
[1725465082425,0.0061303,2441.9,2441.8,0.40951]
[1725465082622,0.0061303,2441.9,2441.8,4.0952]
[1725465082820,0.0061303,2441.9,2441.8,4.50471]
[1725465083216,0.0061303,2441.9,2441.8,4.0952]
[1725465083417,0.0061303,2441.9,2441.8,4.50471]
[1725465083926,0.0061303,2441.9,2441.8,10.50471]
[1725465084727,0.0061303,2441.9,2441.8,4.50471]
[1725465084930,0.0061303,2441.9,2441.8,11.52849]
[1725465085227,0.4094,2442.5,2442.3,0.40942]
[1725465085627,0.40941,2442.4,2442.3,3.5]
[1725465085824,0.4094,2442.5,2442.3,3.90942]
[1725465086018,0.40941,2442.4,2442.3,3.5]
[1725465086235,0.40942,2442.3,2442.2,0.0061517]
[1725465086532,1.02346,2442.6,2442.2,0.0061517]
[1725465086732,0.40942,2442.3,2442.2,0.0061517]
[1725465087226,2.6582,2442.7,2442.2,0.0061517]
[1725465087421,0.40942,2442.4,2442.3,0.40942]
[1725465087628,0.40942,2442.4,2442.2,0.4155817]
[1725465088531,0.40942,2442.3,2442.2,0.4155817]
[1725465088729,0.40942,2442.4,2442.2,0.0061517]
[1725465089127,0.40941,2442.4,2442.3,0.40942]
[1725465089329,0.40942,2442.3,2442.2,0.0061517]
[1725465089521,0.40941,2442.4,2442.2,0.0061517]
[1725465089720,0.40941,2442.4,2442.3,0.40942]
[1725465090231,1.02346,2442.6,2442.2,0.4155817]
[1725465090429,0.40942,2442.4,2442.3,0.40942]
[1725465090631,2.6582,2442.7,2442.4,0.4094]
[1725465090826,1.02337,2442.8,2442.5,0.40938]
[1725465091028,0.40938,2442.6,2442.4,0.4094]
[1725465091231,1.0233,2443.0,2442.4,1.3304]
[1725465091430,0.40929,2443.2,2443.0,0.4093]
[1725465091624,2.7244,2443.6,2442.9,3.2078]
[1725465091829,2.7244,2443.6,2443.4,0.40924]
[1725465092032,2.7244,2443.6,2443.2,3.2078]
[1725465092033,2.7244,2443.6,2443.3,0.40925]
[1725465092334,0.4092,2443.7,2443.5,0.40922]
[1725465092533,1.02294,2443.8,2443.1,2.8670093]
[1725465092733,4.117,2443.9,2443.1,1.3304]
[1725465092734,1.02298,2443.7,2443.1,1.3304]
[1725465093031,1.02308,2443.5,2442.9,3.2078]
[1725465093233,0.40929,2443.1,2443.0,3.5]
[1725465093635,0.40929,2443.1,2442.6,7.3649]
[1725465093636,1.02316,2443.3,2442.6,4.5349]
[1725465093933,2.606,2443.4,2442.9,0.40931]
[1725465093934,0.40929,2443.1,2442.9,0.40931]
[1725465094125,2.606,2443.4,2442.9,3.5]
[1725465094434,3.62912,2443.4,2442.9,3.5]
[1725465094735,3.62912,2443.4,2442.7,11.63618789]
[1725465094736,1.02319,2443.2,2442.7,0.40935]
[1725465094924,0.40931,2443.0,2442.7,0.40936]
[1725465095226,2.606,2443.4,2442.7,3.5]
[1725465095426,2.606,2443.4,2443.0,0.4093]
[1725465095627,0.40928,2443.2,2442.9,0.40931]
[1725465095830,0.40926,2443.3,2442.7,3.5]
[1725465096037,0.40931,2443.0,2442.8,0.40933]
[1725465096635,0.4093,2443.1,2442.8,0.40933]
[1725465096830,3.62912,2443.4,2442.7,3.5]
[1725465097139,0.40928,2443.2,2443.0,0.4093]
[1725465097435,0.40927,2443.3,2443.0,0.4093]
[1725465097624,0.40927,2443.2,2443.0,0.4093]
[1725465097828,3.62912,2443.4,2443.0,0.4093]
[1725465098027,0.40929,2443.1,2442.9,3.61712]
[1725465098234,1.02317,2443.3,2442.9,3.2078]
[1725465098541,1.02346,2442.6,2442.2,0.0061517]
[1725465098834,1.02337,2442.8,2442.2,0.0061517]
[1725465098835,0.40941,2442.5,2442.2,0.4155917]
[1725465099036,1.02337,2442.8,2442.2,0.0061517]
[1725465099223,0.40942,2442.3,2442.2,0.0061517]
[1725465099424,4.117,2443.1,2442.2,0.0061517]
[1725465099425,3.73103,2442.7,2442.2,0.4155917]
[1725465099635,0.4094,2442.5,2442.2,0.4155917]
[1725465100141,0.40942,2442.3,2442.2,0.0061517]
[1725465100431,3.73103,2442.7,2442.2,0.0061517]
[1725465100432,5.9154,2442.7,2442.2,0.0061517]
[1725465100631,0.40942,2442.3,2442.2,0.0061517]
[1725465100933,0.40938,2442.6,2442.3,0.40942]
[1725465101432,3.6617,2443.0,2442.2,0.21437841]
[1725465101629,3.6617,2443.0,2442.2,0.0061517]
[1725465101630,0.40942,2442.3,2442.2,0.0061517]
[1725465102431,0.40937,2442.7,2442.3,0.40942]
[1725465102628,2.6384,2443.0,2442.2,0.0061517]
[1725465102831,0.4094,2442.5,2442.2,0.0061517]
[1725465103231,0.40942,2442.3,2442.2,0.0061517]
[1725465103623,1.43299,2442.3,2442.2,0.0061517]
[1725465103829,0.40953,2441.7,2441.5,2.83]
[1725465104034,1.0237,2442.0,2441.5,3.5]
[1725465104536,0.40953,2441.7,2441.5,3.5]
[1725465104730,1.0237,2442.0,2441.2,3.2078]
[1725465104731,4.23158,2441.8,2441.2,3.2078]
[1725465104929,0.00610848,2441.7,2441.3,0.41572874]
[1725465105230,0.00610848,2441.7,2441.3,0.00613874]
[1725465105432,0.40957,2441.5,2441.3,0.00613874]
[1725465105930,0.40955,2441.6,2441.3,0.00613874]
[1725465106332,0.00610848,2441.7,2441.4,0.40956]
[1725465106526,0.00610848,2441.7,2441.5,0.40955]
[1725465106724,0.00610848,2441.7,2441.5,3.2078]
[1725465107130,0.00610848,2441.7,2441.5,3.61735]
[1725465107333,0.00610848,2441.7,2441.6,0.40954]
[1725465107539,0.00610848,2441.7,2441.6,4.50554]
[1725465107730,2.7013,2442.2,2441.9,0.40949]
[1725465108234,5.21909,2443.0,2441.8,3.2078]
[1725465108235,5.21909,2443.0,2442.0,3.5]
[1725465108424,3.6172,2442.5,2442.1,0.40945]
[1725465108623,0.40939,2442.5,2442.1,3.2078]
[1725465108828,3.71185,2442.9,2442.1,3.2078]
[1725465108829,2.6885,2442.9,2442.1,6.0378]
[1725465109031,0.40937,2442.7,2442.3,0.40942]
[1725465109231,0.40935,2442.8,2442.4,0.4094]
[1725465109427,0.40935,2442.8,2442.4,0.40941]
[1725465109838,1.02327,2443.1,2442.4,3.2078]
[1725465110038,0.40935,2442.8,2442.4,3.6172]
[1725465110239,0.40935,2442.8,2442.5,0.40939]
[1725465110439,2.7322,2443.0,2442.6,0.40937]
[1725465110440,3.14152,2443.0,2442.6,0.40937]
[1725465110635,3.14152,2443.0,2442.8,0.40933]
[1725465110636,1.3891,2443.0,2442.8,0.40933]
[1725465110839,1.3891,2443.0,2442.6,0.00613874]
[1725465111132,0.40929,2443.1,2442.8,0.40933]
[1725465111338,4.5509,2443.4,2442.6,0.00613874]
[1725465111541,0.40936,2442.7,2442.6,0.00613874]
[1725465112531,0.40932,2443.0,2442.6,4.09973874]
[1725465112739,1.02319,2443.2,2442.6,0.00613874]
[1725465112935,1.2515,2443.3,2442.6,0.00613874]
[1725465113137,0.40928,2443.2,2442.8,3.61713]
[1725465113437,1.02319,2443.2,2442.8,3.2078]
[1725465113635,0.40932,2442.9,2442.8,3.2078]
[1725465113942,0.40936,2442.7,2442.6,0.00613874]
[1725465114444,3.2078,2443.1,2442.6,0.41550874]
[1725465114632,0.40936,2442.7,2442.6,0.00613874]
[1725465115536,0.40935,2442.8,2442.6,0.00613874]
[1725465115729,0.40936,2442.7,2442.6,0.00613874]
[1725465117735,1.02325,2443.1,2442.6,0.00613874]
[1725465117935,2.31687862,2443.3,2442.6,0.00613874]
[1725465117936,0.40931,2443.0,2442.8,0.40934]
[1725465118237,0.40931,2443.0,2442.6,0.00613874]
[1725465118238,2.27467,2443.3,2442.7,2.83]
[1725465118541,0.40933,2442.9,2442.6,0.00613874]
[1725465118742,0.40934,2442.8,2442.6,0.41550874]
[1725465118936,0.40933,2442.9,2442.7,0.40936]
[1725465119134,2.27467,2443.3,2442.6,0.41550874]
[1725465119135,0.40935,2442.8,2442.6,0.41550874]
[1725465119334,0.40936,2442.7,2442.6,0.00613874]
[1725465120145,0.40935,2442.8,2442.6,0.00613874]
[1725465120442,0.40936,2442.7,2442.6,0.00613874]
[1725465120637,1.43276,2442.7,2442.6,0.00613874]
[1725465121439,0.40936,2442.7,2442.6,0.00613874]
[1725465122148,1.06537862,2443.0,2442.6,4.09973874]
[1725465122442,2.62810257,2443.1,2442.6,4.09973874]
[1725465122443,0.40934,2442.9,2442.7,0.40935]
[1725465122645,0.40934,2442.9,2442.6,0.00613874]
[1725465122646,0.40935,2442.8,2442.6,0.41550874]
[1725465123045,0.40936,2442.7,2442.6,0.00613874]
[1725465123344,2.08865862,2443.0,2442.6,0.00613874]
[1725465123543,0.40936,2442.7,2442.6,0.00613874]
[1725465123948,0.40936,2442.7,2442.6,4.09973874]
[1725465124247,0.40935,2442.8,2442.6,4.09973874]
[1725465124544,0.40935,2442.8,2442.6,0.41550874]
[1725465124743,1.47469862,2443.0,2442.8,0.40934]
[1725465124954,1.60484257,2443.1,2442.7,3.61715]
[1725465124955,0.40932,2442.9,2442.7,3.61715]
[1725465125142,0.40932,2442.9,2442.7,0.40935]
[1725465126643,0.40933,2442.9,2442.7,0.40935]
[1725465127041,1.47469862,2443.0,2442.8,3.61714]
[1725465127242,1.47468862,2443.0,2442.8,0.40934]
[1725465127646,1.47469862,2443.0,2442.8,0.40934]
[1725465127847,0.40933,2442.9,2442.7,0.40935]
[1725465128550,1.47468862,2443.0,2442.8,0.40934]
[1725465128748,0.40932,2442.9,2442.8,0.40934]
[1725465129048,0.40932,2443.0,2442.8,0.40933]
[1725465129246,0.40932,2443.0,2442.9,0.40932]
[1725465129247,1.47469862,2443.0,2442.9,0.40932]
[1725465129444,0.40932,2442.9,2442.8,0.40933]
[1725465129639,1.47468862,2443.0,2442.8,0.40933]
[1725465129851,1.47468862,2443.0,2442.7,3.61715]
[1725465129852,0.40932,2442.9,2442.7,3.61715]
[1725465130059,0.40932,2442.9,2442.6,0.00613874]
[1725465130249,1.47468862,2443.0,2442.6,0.00613874]
[1725465130556,1.06537862,2443.5,2443.3,0.40926]
[1725465130751,1.06537862,2443.5,2443.0,1.02328]
[1725465130752,1.06537862,2443.5,2443.1,3.2078]
[1725465130953,0.40923,2443.5,2443.4,0.40924]
[1725465131450,0.40923,2443.5,2443.3,0.40924]
[1725465131653,0.40924,2443.4,2443.3,0.40924]
[1725465131857,2.08840862,2443.6,2443.3,0.40924]
[1725465132153,1.06537862,2443.7,2443.6,0.40921]
[1725465132356,1.06537862,2444.0,2443.6,8.83]
[1725465132560,1.06537862,2444.2,2444.0,0.40913]
[1725465132860,1.47448862,2444.2,2444.1,3.5]
[1725465133254,1.06537862,2444.2,2444.1,3.5]
[1725465133442,1.06537862,2444.4,2444.1,8.00031]
[1725465133648,1.06537862,2444.6,2444.1,3.5]
[1725465133848,1.43188,2444.2,2444.1,3.5]
[1725465134044,1.06537862,2444.4,2444.3,0.40909]
[1725465134252,4.44225761,2444.8,2444.3,6.9212]
[1725465134253,2.42387862,2444.8,2444.3,6.9212]
[1725465134454,1.3585,2444.8,2444.3,8.80634346]
[1725465134655,5.15577862,2444.7,2444.1,3.5]
[1725465134955,0.4091,2444.3,2444.1,3.5]
[1725465135562,0.4091,2444.3,2443.9,0.00613874]
[1725465135563,0.40914,2444.0,2443.9,0.00613874]
[1725465135759,4.50114,2444.0,2443.9,0.00613874]
[1725465135960,0.40914,2444.0,2443.9,0.00613874]
[1725465136150,4.50114,2444.0,2443.9,0.00613874]
[1725465136457,1.47450862,2444.1,2443.9,0.00613874]
[1725465136653,0.40913,2444.1,2443.9,0.00613874]
[1725465136855,4.50114,2444.0,2443.9,0.00613874]
[1725465137158,0.40914,2444.0,2443.9,0.00613874]
[1725465137452,4.50114,2444.0,2443.9,0.00613874]
[1725465138955,3.67887862,2444.2,2443.9,0.00613874]
[1725465139145,2.6135,2444.2,2443.9,0.00613874]
[1725465139461,2.6135,2444.2,2443.9,0.20575582]
[1725465139756,0.40912,2444.1,2443.9,0.00613874]
[1725465139950,0.40914,2444.0,2443.9,0.00613874]
[1725465140458,4.50114,2444.0,2443.9,0.00613874]
[1725465141856,0.40914,2444.0,2443.9,0.00613874]
[1725465142759,5.524,2444.0,2443.9,0.00613874]
[1725465142958,0.86537862,2444.4,2444.0,4.092]
[1725465143154,0.86537862,2445.4,2445.0,0.40897]
[1725465143355,1.3199,2445.5,2445.2,2.83]
[1725465143561,1.3199,2445.5,2445.2,3.03489807]
[1725465143759,1.72879,2445.5,2445.2,3.03489807]
[1725465143959,1.72879,2445.5,2445.2,2.83]
[1725465144165,1.3199,2445.5,2444.9,3.2078]
[1725465144458,3.61658,2446.2,2445.5,0.40888]
[1725465144652,3.2078,2446.2,2445.5,3.2078]
[1725465144858,3.2078,2446.2,2445.7,0.40885]
[1725465145164,1.3199,2446.4,2445.7,0.00613874]
[1725465145864,0.40884,2445.8,2445.7,0.00613874]
[1725465146358,4.0888,2445.8,2445.7,0.00613874]
[1725465146561,4.49764,2445.8,2445.7,0.00613874]
[1725465146867,5.80424,2445.8,2445.7,0.00613874]
[1725465147257,11.80424,2445.8,2445.7,0.00613874]
[1725465147659,11.80424,2445.8,2444.9,3.41664747]
[1725465147660,11.3954,2445.8,2444.9,3.2078]
[1725465147863,3.61668,2445.6,2444.9,3.4101197]
[1725465148159,0.40889,2445.5,2444.9,3.4101197]
[1725465148369,0.40891,2445.4,2444.9,3.4101197]
[1725465148562,0.40892,2445.4,2444.9,3.2078]
[1725465148767,0.41505874,2445.4,2444.9,3.21393874]
[1725465149064,0.00613874,2445.4,2444.9,3.41795653]
[1725465149864,0.00613874,2445.4,2445.1,2.83]
[1725465150368,0.00613874,2445.4,2445.2,3.61673]
[1725465150868,0.00613874,2445.4,2445.1,2.83]
[1725465151571,0.00613874,2445.4,2445.2,3.2078]
[1725465151868,0.00613874,2445.4,2445.2,6.7078]
[1725465152873,0.00613874,2445.4,2445.3,0.40892]
[1725465153073,0.4088,2446.1,2445.3,12.60071905]
[1725465153269,1.6852,2446.1,2445.5,0.40888]
[1725465153571,1.2764,2446.1,2445.4,3.2078]
[1725465153765,0.40883,2445.9,2445.4,3.6167]
[1725465153965,0.40884,2445.8,2445.4,3.2078]
[1725465154172,1.2764,2446.1,2445.4,6.0378]
[1725465154413,2.3511,2446.3,2446.0,6.0378]
[1725465154414,1.3292,2446.3,2446.0,6.0378]
[1725465154673,0.40873,2446.5,2446.0,6.0378]
[1725465154876,3.40965478,2446.9,2445.2,4.823]
[1725465154877,2.6531,2446.7,2445.8,3.2078]
[1725465155473,2.6531,2446.7,2445.8,3.41464339]